[Event "Titled Tuesday Blitz November 07 Late 2023"]
[White "Dias, Joao Batista"]
[Black "Broca Jimenez, Fernando"]
[WhiteFideId "2108240"]
[BlackFideId "5104742"]
[WhiteElo "1959"]
[BlackElo "2208"]
[Result "0-1"]
[Round "10"]
[TimeControl "180+1"]
[Date "2023.11.07"]
[WhiteClock "0:01:12"]
[BlackClock "0:00:07"]
[Board "98"]

1. e4 {[%clk 0:02:52]}  c5 {[%clk 0:03:00]} 2. Nf3 {[%clk 0:02:52]}  g6 {[%clk 0:03:00]} 3. d4 {[%clk 0:02:51]}  cxd4 {[%clk 0:03:01]} 4. Qxd4 {[%clk 0:02:51]}  Nf6 {[%clk 0:03:00]} 5. Qe3 {[%clk 0:02:52]}  d6 {[%clk 0:02:52]} 6. h3 {[%clk 0:02:52]}  Nc6 {[%clk 0:02:51]} 7. Bb5 {[%clk 0:02:49]}  Bd7 {[%clk 0:02:51]} 8. Bxc6 {[%clk 0:02:49]}  Bxc6 {[%clk 0:02:52]} 9. Nc3 {[%clk 0:02:49]}  Bg7 {[%clk 0:02:42]} 10. O-O {[%clk 0:02:49]}  O-O {[%clk 0:02:42]} 11. Rd1 {[%clk 0:02:47]}  Qa5 {[%clk 0:02:00]} 12. Nd4 {[%clk 0:02:44]}  Rac8 {[%clk 0:01:48]} 13. Nxc6 {[%clk 0:02:41]}  Rxc6 {[%clk 0:01:44]} 14. Nd5 {[%clk 0:02:38]}  Nxd5 {[%clk 0:01:37]} 15. exd5 {[%clk 0:02:38]}  Rc7 {[%clk 0:01:37]} 16. c3 {[%clk 0:02:35]}  b5 {[%clk 0:01:23]} 17. a3 {[%clk 0:02:34]}  Rfc8 {[%clk 0:01:12]} 18. Qe2 {[%clk 0:02:33]}  Qa4 {[%clk 0:01:05]} 19. Be3 {[%clk 0:02:29]}  a5 {[%clk 0:01:03]} 20. Bd4 {[%clk 0:02:28]}  Qc4 {[%clk 0:00:57]} 21. Bxg7 {[%clk 0:02:27]}  Qxe2 {[%clk 0:00:56]} 22. Bd4 {[%clk 0:02:25]}  Rc4 {[%clk 0:00:43]} 23. Rab1 {[%clk 0:02:24]}  b4 {[%clk 0:00:42]} 24. axb4 {[%clk 0:02:23]}  axb4 {[%clk 0:00:42]} 25. Re1 {[%clk 0:02:23]}  Qc2 {[%clk 0:00:39]} 26. Rec1 {[%clk 0:02:15]}  Qe4 {[%clk 0:00:34]} 27. Re1 {[%clk 0:02:12]}  Qxd5 {[%clk 0:00:33]} 28. Rxe7 {[%clk 0:02:12]}  bxc3 {[%clk 0:00:32]} 29. bxc3 {[%clk 0:02:12]}  R4c7 {[%clk 0:00:32]} 30. Re3 {[%clk 0:02:10]}  Qf5 {[%clk 0:00:24]} 31. Rbe1 {[%clk 0:02:09]}  f6 {[%clk 0:00:22]} 32. g4 {[%clk 0:02:05]}  Qf4 {[%clk 0:00:20]} 33. Re4 {[%clk 0:02:04]}  Qf3 {[%clk 0:00:17]} 34. R4e3 {[%clk 0:02:04]}  Qd5 {[%clk 0:00:16]} 35. Bxf6 {[%clk 0:02:02]}  Kf7 {[%clk 0:00:16]} 36. g5 {[%clk 0:01:57]}  Rxc3 {[%clk 0:00:14]} 37. Bxc3 {[%clk 0:01:56]}  Qxg5+ {[%clk 0:00:12]} 38. Kf1 {[%clk 0:01:54]}  Qf5 {[%clk 0:00:11]} 39. Kg2 {[%clk 0:01:52]}  Qg5+ {[%clk 0:00:09]} 40. Rg3 {[%clk 0:01:48]}  Qd5+ {[%clk 0:00:05]} 41. Rf3+ {[%clk 0:01:46]}  Kg8 {[%clk 0:00:04]} 42. Re3 {[%clk 0:01:45]}  Rf8 {[%clk 0:00:04]} 43. Kg3 {[%clk 0:01:42]}  Qg5+ {[%clk 0:00:03]} 44. Kh2 {[%clk 0:01:39]}  Rxf3 {[%clk 0:00:02]} 45. Rxf3 {[%clk 0:01:40]}  Qc5 {[%clk 0:00:03]} 46. Kg3 {[%clk 0:01:37]}  d5 {[%clk 0:00:04]} 47. Bd2 {[%clk 0:01:26]}  d4 {[%clk 0:00:04]} 48. Rf4 {[%clk 0:01:21]}  Qe5 {[%clk 0:00:04]} 49. Kf3 {[%clk 0:01:19]}  g5 {[%clk 0:00:04]} 50. Re4 {[%clk 0:01:20]}  Qf5+ {[%clk 0:00:04]} 51. Bf4 {[%clk 0:01:17]}  gxf4 {[%clk 0:00:05]} 52. Rxf4 {[%clk 0:01:17]}  Qd5+ {[%clk 0:00:05]} 53. Ke2 {[%clk 0:01:15]}  d3+ {[%clk 0:00:06]} 54. Kd2 {[%clk 0:01:15]}  Qg5 {[%clk 0:00:05]} 55. Ke3 {[%clk 0:01:14]}  Qxf4+ {[%clk 0:00:06]} 56. Kxf4 {[%clk 0:01:12]}  d2 {[%clk 0:00:07]} 0-1


[Site "https://www.chess.com"]

[Event "Titled Tuesday Blitz November 07 Late 2023"]
[White "Aravindh, Chithambaram VR."]
[Black "Carlsen, Magnus"]
[WhiteFideId "5072786"]
[BlackFideId "1503014"]
[WhiteElo "2957"]
[BlackElo "3277"]
[Result "0-1"]
[Round "11"]
[TimeControl "180+1"]
[Date "2023.11.07"]
[WhiteClock "0:00:00"]
[BlackClock "0:00:01"]
[Board "1"]

1. b3 {[%clk 0:03:00]}  e5 {[%clk 0:02:57]} 2. Bb2 {[%clk 0:03:01]}  Nc6 {[%clk 0:02:57]} 3. c4 {[%clk 0:03:01]}  g6 {[%clk 0:02:54]} 4. g3 {[%clk 0:02:58]}  Bg7 {[%clk 0:02:49]} 5. Bg2 {[%clk 0:02:58]}  d6 {[%clk 0:02:47]} 6. Nc3 {[%clk 0:02:57]}  Be6 {[%clk 0:02:46]} 7. e3 {[%clk 0:02:50]}  Qd7 {[%clk 0:02:45]} 8. Nge2 {[%clk 0:02:48]}  Bh3 {[%clk 0:02:45]} 9. Bxh3 {[%clk 0:02:41]}  Qxh3 {[%clk 0:02:44]} 10. Nd5 {[%clk 0:02:40]}  Qd7 {[%clk 0:02:42]} 11. h4 {[%clk 0:02:36]}  h5 {[%clk 0:02:33]} 12. Nec3 {[%clk 0:02:36]}  Nce7 {[%clk 0:02:29]} 13. d4 {[%clk 0:02:18]}  Nxd5 {[%clk 0:02:27]} 14. Nxd5 {[%clk 0:02:12]}  c6 {[%clk 0:02:21]} 15. Nc3 {[%clk 0:02:09]}  Nf6 {[%clk 0:02:12]} 16. Qe2 {[%clk 0:01:48]}  exd4 {[%clk 0:02:06]} 17. exd4+ {[%clk 0:01:48]}  Kf8 {[%clk 0:02:03]} 18. O-O-O {[%clk 0:01:35]}  d5 {[%clk 0:01:57]} 19. Rhe1 {[%clk 0:01:32]}  Re8 {[%clk 0:01:54]} 20. Qd3 {[%clk 0:01:25]}  Rxe1 {[%clk 0:01:32]} 21. Rxe1 {[%clk 0:01:26]}  Bh6+ {[%clk 0:01:14]} 22. Kc2 {[%clk 0:01:02]}  Kg7 {[%clk 0:01:14]} 23. Ba3 {[%clk 0:00:38]}  Re8 {[%clk 0:01:03]} 24. Re5 {[%clk 0:00:34]}  Ng4 {[%clk 0:00:53]} 25. Rxe8 {[%clk 0:00:34]}  Qxe8 {[%clk 0:00:54]} 26. f4 {[%clk 0:00:10]}  Qe1 {[%clk 0:00:39]} 27. Bc1 {[%clk 0:00:10]}  Qf2+ {[%clk 0:00:20]} 28. Bd2 {[%clk 0:00:08]}  Qg2 {[%clk 0:00:20]} 29. Kc1 {[%clk 0:00:03]}  Kh7 {[%clk 0:00:19]} 30. cxd5 {[%clk 0:00:01]}  cxd5 {[%clk 0:00:19]} 31. Qb5 {[%clk 0:00:02]}  Qxg3 {[%clk 0:00:16]} 32. Qxd5 {[%clk 0:00:02]}  Kg7 {[%clk 0:00:15]} 33. Ne4 {[%clk 0:00:03]}  Qf3 {[%clk 0:00:09]} 34. Nc3 {[%clk 0:00:01]}  Qf2 {[%clk 0:00:07]} 35. Qe4 {[%clk 0:00:01]}  Qxh4 {[%clk 0:00:07]} 36. d5 {[%clk 0:00:01]}  Qf6 {[%clk 0:00:04]} 37. Ne2 {[%clk 0:00:01]}  Kh7 {[%clk 0:00:04]} 38. Bc3 {[%clk 0:00:01]}  Qd8 {[%clk 0:00:04]} 39. Qd4 {[%clk 0:00:00]}  f6 {[%clk 0:00:01]} 0-1


[Site "https://www.chess.com"]

[Event "Titled Tuesday Blitz November 07 Late 2023"]
[White "Nihal Sarin"]
[Black "Duda, Jan-Krzysztof"]
[WhiteFideId "25092340"]
[BlackFideId "1170546"]
[WhiteElo "3114"]
[BlackElo "3106"]
[Result "1-0"]
[Round "11"]
[TimeControl "180+1"]
[Date "2023.11.08"]
[WhiteClock "0:00:27"]
[BlackClock "0:00:00"]
[Board "2"]

1. d4 {[%clk 0:02:51]}  Nf6 {[%clk 0:02:59]} 2. c4 {[%clk 0:02:51]}  e6 {[%clk 0:03:00]} 3. Nf3 {[%clk 0:02:51]}  d5 {[%clk 0:02:59]} 4. Nc3 {[%clk 0:02:52]}  c6 {[%clk 0:02:55]} 5. e3 {[%clk 0:02:47]}  Nbd7 {[%clk 0:02:55]} 6. Be2 {[%clk 0:02:48]}  Bd6 {[%clk 0:02:54]} 7. O-O {[%clk 0:02:48]}  O-O {[%clk 0:02:54]} 8. b3 {[%clk 0:02:48]}  b6 {[%clk 0:02:54]} 9. Bb2 {[%clk 0:02:49]}  Bb7 {[%clk 0:02:54]} 10. Rc1 {[%clk 0:02:49]}  Qe7 {[%clk 0:02:37]} 11. Bd3 {[%clk 0:02:45]}  Rad8 {[%clk 0:02:32]} 12. Qe2 {[%clk 0:02:40]}  Ba3 {[%clk 0:02:26]} 13. cxd5 {[%clk 0:02:36]}  exd5 {[%clk 0:02:22]} 14. Bxa3 {[%clk 0:02:31]}  Qxa3 {[%clk 0:02:23]} 15. Nb1 {[%clk 0:02:24]}  Qd6 {[%clk 0:02:21]} 16. Qb2 {[%clk 0:02:25]}  a5 {[%clk 0:02:09]} 17. Nc3 {[%clk 0:02:25]}  Rfe8 {[%clk 0:02:09]} 18. Ne2 {[%clk 0:02:24]}  g6 {[%clk 0:01:54]} 19. Rfd1 {[%clk 0:02:24]}  Re7 {[%clk 0:01:54]} 20. a3 {[%clk 0:02:08]}  Rde8 {[%clk 0:01:53]} 21. Nf4 {[%clk 0:02:01]}  Ne4 {[%clk 0:01:42]} 22. b4 {[%clk 0:01:54]}  axb4 {[%clk 0:01:41]} 23. axb4 {[%clk 0:01:55]}  b5 {[%clk 0:01:33]} 24. Bxe4 {[%clk 0:01:53]}  dxe4 {[%clk 0:01:34]} 25. Nd2 {[%clk 0:01:50]}  Nb6 {[%clk 0:01:33]} 26. Qc3 {[%clk 0:01:44]}  Na4 {[%clk 0:01:30]} 27. Qb3 {[%clk 0:01:43]}  g5 {[%clk 0:01:28]} 28. Ne2 {[%clk 0:01:27]}  h5 {[%clk 0:01:25]} 29. h4 {[%clk 0:01:22]}  gxh4 {[%clk 0:01:20]} 30. Nf4 {[%clk 0:01:23]}  Bc8 {[%clk 0:01:14]} 31. Rc2 {[%clk 0:01:16]}  Bd7 {[%clk 0:01:07]} 32. Rdc1 {[%clk 0:01:14]}  Kh7 {[%clk 0:01:04]} 33. d5 {[%clk 0:01:08]}  Nb6 {[%clk 0:00:38]} 34. Rxc6 {[%clk 0:00:50]}  Bxc6 {[%clk 0:00:38]} 35. Rxc6 {[%clk 0:00:51]}  Qd8 {[%clk 0:00:07]} 36. Nxh5 {[%clk 0:00:50]}  Nxd5 {[%clk 0:00:06]} 37. Qxd5 {[%clk 0:00:47]}  Qxd5 {[%clk 0:00:07]} 38. Nf6+ {[%clk 0:00:47]}  Kg7 {[%clk 0:00:08]} 39. Nxd5 {[%clk 0:00:48]}  Ra7 {[%clk 0:00:04]} 40. Nf6 {[%clk 0:00:37]}  Rh8 {[%clk 0:00:04]} 41. Ndxe4 {[%clk 0:00:34]}  h3 {[%clk 0:00:04]} 42. gxh3 {[%clk 0:00:33]}  Rxh3 {[%clk 0:00:04]} 43. Rc5 {[%clk 0:00:29]}  Ra1+ {[%clk 0:00:02]} 44. Kg2 {[%clk 0:00:29]}  Rhh1 {[%clk 0:00:02]} 45. Rg5+ {[%clk 0:00:27]}  Kf8 {[%clk 0:00:00]} 46. Rg8+ {[%clk 0:00:27]} 1-0


[Site "https://www.chess.com"]

[Event "Titled Tuesday Blitz November 07 Late 2023"]
[White "Martinez Alcantara, Jose Eduardo"]
[Black "Indjic, Aleksandar"]
[WhiteFideId "3805662"]
[BlackFideId "911925"]
[WhiteElo "3053"]
[BlackElo "2927"]
[Result "1-0"]
[Round "11"]
[TimeControl "180+1"]
[Date "2023.11.07"]
[WhiteClock "0:00:08"]
[BlackClock "0:00:53"]
[Board "4"]

1. e4 {[%clk 0:03:00]}  c5 {[%clk 0:03:00]} 2. Nf3 {[%clk 0:02:44]}  d6 {[%clk 0:03:00]} 3. c3 {[%clk 0:02:43]}  Nf6 {[%clk 0:02:59]} 4. h3 {[%clk 0:02:43]}  g6 {[%clk 0:02:56]} 5. Bd3 {[%clk 0:02:43]}  Nc6 {[%clk 0:02:55]} 6. Bc2 {[%clk 0:02:43]}  e5 {[%clk 0:02:55]} 7. d3 {[%clk 0:02:43]}  Bg7 {[%clk 0:02:54]} 8. Bg5 {[%clk 0:02:43]}  h6 {[%clk 0:02:54]} 9. Bxf6 {[%clk 0:02:43]}  Bxf6 {[%clk 0:02:54]} 10. Nbd2 {[%clk 0:02:44]}  Bg7 {[%clk 0:02:53]} 11. Bb3 {[%clk 0:02:44]}  O-O {[%clk 0:02:52]} 12. Nf1 {[%clk 0:02:38]}  Kh8 {[%clk 0:02:51]} 13. Ne3 {[%clk 0:02:34]}  f5 {[%clk 0:02:51]} 14. Qe2 {[%clk 0:02:34]}  b5 {[%clk 0:02:47]} 15. Bd5 {[%clk 0:02:34]}  Bd7 {[%clk 0:02:46]} 16. h4 {[%clk 0:02:30]}  Rb8 {[%clk 0:02:39]} 17. h5 {[%clk 0:02:31]}  f4 {[%clk 0:02:38]} 18. hxg6 {[%clk 0:02:14]}  Ne7 {[%clk 0:02:38]} 19. Bf7 {[%clk 0:01:56]}  Rxf7 {[%clk 0:02:26]} 20. gxf7 {[%clk 0:01:54]}  fxe3 {[%clk 0:02:25]} 21. Qxe3 {[%clk 0:01:55]}  Qf8 {[%clk 0:02:25]} 22. Ng5 {[%clk 0:01:50]}  Ng6 {[%clk 0:02:20]} 23. g3 {[%clk 0:01:46]}  Qe7 {[%clk 0:02:03]} 24. O-O-O {[%clk 0:01:41]}  Nf8 {[%clk 0:01:52]} 25. f4 {[%clk 0:01:26]}  Be6 {[%clk 0:01:50]} 26. Nxe6 {[%clk 0:01:24]}  Qxe6 {[%clk 0:01:49]} 27. f5 {[%clk 0:01:11]}  Qxf7 {[%clk 0:01:43]} 28. Rxh6+ {[%clk 0:01:11]}  Bxh6 {[%clk 0:01:35]} 29. Qxh6+ {[%clk 0:01:12]}  Kg8 {[%clk 0:01:35]} 30. Qxd6 {[%clk 0:01:10]}  Re8 {[%clk 0:01:35]} 31. Qxc5 {[%clk 0:01:07]}  Qxa2 {[%clk 0:01:31]} 32. Qxb5 {[%clk 0:01:05]}  Re7 {[%clk 0:01:30]} 33. Kc2 {[%clk 0:00:53]}  a6 {[%clk 0:01:29]} 34. Qb8 {[%clk 0:00:42]}  Qa4+ {[%clk 0:01:27]} 35. Qb3+ {[%clk 0:00:41]}  Qxb3+ {[%clk 0:01:27]} 36. Kxb3 {[%clk 0:00:42]}  Rb7+ {[%clk 0:01:26]} 37. Kc2 {[%clk 0:00:42]}  Kg7 {[%clk 0:01:26]} 38. Ra1 {[%clk 0:00:41]}  Rb6 {[%clk 0:01:25]} 39. d4 {[%clk 0:00:33]}  Kf6 {[%clk 0:01:24]} 40. Ra5 {[%clk 0:00:31]}  Nd7 {[%clk 0:01:23]} 41. Rd5 {[%clk 0:00:27]}  Rb7 {[%clk 0:01:23]} 42. Rd6+ {[%clk 0:00:26]}  Kg5 {[%clk 0:01:23]} 43. Rg6+ {[%clk 0:00:24]}  Kh5 {[%clk 0:01:23]} 44. Rg7 {[%clk 0:00:19]}  Kh6 {[%clk 0:01:23]} 45. Re7 {[%clk 0:00:18]}  exd4 {[%clk 0:01:23]} 46. cxd4 {[%clk 0:00:19]}  Nc5 {[%clk 0:01:21]} 47. Rxb7 {[%clk 0:00:17]}  Nxb7 {[%clk 0:01:22]} 48. Kd3 {[%clk 0:00:16]}  Kg5 {[%clk 0:01:22]} 49. d5 {[%clk 0:00:13]}  Nd6 {[%clk 0:01:13]} 50. Kd4 {[%clk 0:00:14]}  a5 {[%clk 0:01:13]} 51. f6 {[%clk 0:00:08]}  a4 {[%clk 0:01:04]} 52. e5 {[%clk 0:00:09]}  Nf5+ {[%clk 0:01:03]} 53. Kc5 {[%clk 0:00:08]}  Kg6 {[%clk 0:01:04]} 54. d6 {[%clk 0:00:08]}  a3 {[%clk 0:00:56]} 55. bxa3 {[%clk 0:00:08]}  Nxg3 {[%clk 0:00:57]} 56. d7 {[%clk 0:00:08]}  Ne4+ {[%clk 0:00:53]} 57. Kc6 {[%clk 0:00:08]} 1-0


[Site "https://www.chess.com"]

[Event "Titled Tuesday Blitz November 07 Late 2023"]
[White "Rustemov, Alexander"]
[Black "Sarana, Alexey"]
[WhiteFideId "4119002"]
[BlackFideId "24133795"]
[WhiteElo "2838"]
[BlackElo "2984"]
[Result "1/2-1/2"]
[Round "11"]
[TimeControl "180+1"]
[Date "2023.11.08"]
[WhiteClock "0:00:07"]
[BlackClock "0:00:05"]
[Board "5"]

1. Nf3 {[%clk 0:02:25]}  d5 {[%clk 0:03:00]} 2. d4 {[%clk 0:02:24]}  Nf6 {[%clk 0:02:59]} 3. c4 {[%clk 0:02:23]}  e6 {[%clk 0:03:00]} 4. cxd5 {[%clk 0:02:21]}  exd5 {[%clk 0:03:00]} 5. Nc3 {[%clk 0:02:21]}  c6 {[%clk 0:02:59]} 6. Bg5 {[%clk 0:02:21]}  Be7 {[%clk 0:02:59]} 7. Qc2 {[%clk 0:02:20]}  h6 {[%clk 0:02:58]} 8. Bh4 {[%clk 0:02:19]}  Nbd7 {[%clk 0:02:58]} 9. e3 {[%clk 0:02:19]}  Nh5 {[%clk 0:02:56]} 10. Bxe7 {[%clk 0:02:16]}  Qxe7 {[%clk 0:02:57]} 11. O-O-O {[%clk 0:02:15]}  Nhf6 {[%clk 0:02:57]} 12. Bd3 {[%clk 0:02:14]}  Nb6 {[%clk 0:02:57]} 13. h3 {[%clk 0:02:13]}  Be6 {[%clk 0:02:56]} 14. Kb1 {[%clk 0:02:12]}  O-O-O {[%clk 0:02:56]} 15. Na4 {[%clk 0:02:12]}  Kb8 {[%clk 0:02:43]} 16. Rc1 {[%clk 0:02:11]}  Nfd7 {[%clk 0:02:42]} 17. Nc5 {[%clk 0:02:09]}  Rc8 {[%clk 0:02:35]} 18. Qc3 {[%clk 0:02:05]}  Rhe8 {[%clk 0:02:31]} 19. Rc2 {[%clk 0:02:02]}  Qf6 {[%clk 0:02:25]} 20. Qb4 {[%clk 0:01:51]}  Bf5 {[%clk 0:02:17]} 21. Bxf5 {[%clk 0:01:43]}  Qxf5 {[%clk 0:02:16]} 22. Rc1 {[%clk 0:01:42]}  Nxc5 {[%clk 0:02:15]} 23. Qxc5 {[%clk 0:01:41]}  Re6 {[%clk 0:02:10]} 24. b3 {[%clk 0:01:39]}  f6 {[%clk 0:02:02]} 25. Kb2 {[%clk 0:01:39]}  g5 {[%clk 0:02:01]} 26. a4 {[%clk 0:01:27]}  h5 {[%clk 0:01:58]} 27. a5 {[%clk 0:01:27]}  Nd7 {[%clk 0:01:58]} 28. Qb4 {[%clk 0:01:27]}  a6 {[%clk 0:01:56]} 29. Ne1 {[%clk 0:01:15]}  g4 {[%clk 0:01:54]} 30. hxg4 {[%clk 0:01:16]}  hxg4 {[%clk 0:01:54]} 31. g3 {[%clk 0:01:17]}  Ka8 {[%clk 0:01:50]} 32. Ng2 {[%clk 0:01:16]}  Ree8 {[%clk 0:01:46]} 33. Nf4 {[%clk 0:01:16]}  Rh8 {[%clk 0:01:46]} 34. Qd6 {[%clk 0:01:11]}  Nb8 {[%clk 0:01:46]} 35. Qe6 {[%clk 0:01:08]}  Qxe6 {[%clk 0:01:36]} 36. Nxe6 {[%clk 0:01:09]}  Rh2 {[%clk 0:01:31]} 37. Nc5 {[%clk 0:01:08]}  Rch8 {[%clk 0:01:28]} 38. Kc3 {[%clk 0:01:06]}  Rg2 {[%clk 0:01:27]} 39. Re1 {[%clk 0:01:03]}  Rhh2 {[%clk 0:01:26]} 40. e4 {[%clk 0:01:00]}  Rxf2 {[%clk 0:01:21]} 41. Rxf2 {[%clk 0:01:00]}  Rxf2 {[%clk 0:01:21]} 42. exd5 {[%clk 0:01:00]}  cxd5 {[%clk 0:01:20]} 43. Re8 {[%clk 0:00:59]}  Rf3+ {[%clk 0:01:17]} 44. Kc2 {[%clk 0:00:59]}  Ka7 {[%clk 0:01:16]} 45. Re7 {[%clk 0:00:57]}  Nc6 {[%clk 0:01:17]} 46. Rxb7+ {[%clk 0:00:56]}  Ka8 {[%clk 0:01:17]} 47. Rb6 {[%clk 0:00:54]}  Nxd4+ {[%clk 0:01:17]} 48. Kb2 {[%clk 0:00:53]}  Rf2+ {[%clk 0:01:11]} 49. Ka3 {[%clk 0:00:50]}  f5 {[%clk 0:00:50]} 50. Rxa6+ {[%clk 0:00:49]}  Kb8 {[%clk 0:00:51]} 51. Rg6 {[%clk 0:00:42]}  Rc2 {[%clk 0:00:39]} 52. Na4 {[%clk 0:00:36]}  Rc6 {[%clk 0:00:21]} 53. Rg7 {[%clk 0:00:34]}  Nc2+ {[%clk 0:00:20]} 54. Kb2 {[%clk 0:00:33]}  Nb4 {[%clk 0:00:20]} 55. Nb6 {[%clk 0:00:31]}  d4 {[%clk 0:00:20]} 56. Rd7 {[%clk 0:00:27]}  d3 {[%clk 0:00:20]} 57. Nc4 {[%clk 0:00:26]}  f4 {[%clk 0:00:17]} 58. gxf4 {[%clk 0:00:22]}  Rg6 {[%clk 0:00:18]} 59. Kc3 {[%clk 0:00:19]}  g3 {[%clk 0:00:17]} 60. Ne3 {[%clk 0:00:19]}  Nc6 {[%clk 0:00:07]} 61. f5 {[%clk 0:00:18]}  g2 {[%clk 0:00:07]} 62. Nxg2 {[%clk 0:00:17]}  Rxg2 {[%clk 0:00:07]} 63. f6 {[%clk 0:00:13]}  Rf2 {[%clk 0:00:06]} 64. f7 {[%clk 0:00:13]}  Kc8 {[%clk 0:00:06]} 65. Rxd3 {[%clk 0:00:11]}  Rxf7 {[%clk 0:00:07]} 66. b4 {[%clk 0:00:12]}  Rf5 {[%clk 0:00:06]} 67. Rh3 {[%clk 0:00:09]}  Kb7 {[%clk 0:00:06]} 68. Rh4 {[%clk 0:00:09]}  Ka6 {[%clk 0:00:06]} 69. Kc4 {[%clk 0:00:09]}  Rg5 {[%clk 0:00:03]} 70. Rh6 {[%clk 0:00:08]}  Kb7 {[%clk 0:00:04]} 71. Rh7+ {[%clk 0:00:08]}  Kb8 {[%clk 0:00:05]} 72. Rh6 {[%clk 0:00:08]}  Ne5+ {[%clk 0:00:04]} 73. Kb3 {[%clk 0:00:07]}  Kc7 {[%clk 0:00:03]} 74. Rh7+ {[%clk 0:00:05]}  Kc6 {[%clk 0:00:04]} 75. Rh6+ {[%clk 0:00:05]}  Kd5 {[%clk 0:00:04]} 76. Ka4 {[%clk 0:00:04]}  Rg1 {[%clk 0:00:04]} 77. Kb5 {[%clk 0:00:04]}  Rb1 {[%clk 0:00:04]} 78. Rh5 {[%clk 0:00:05]}  Ra1 {[%clk 0:00:03]} 79. a6 {[%clk 0:00:05]}  Kd6 {[%clk 0:00:03]} 80. Rh6+ {[%clk 0:00:04]}  Kc7 {[%clk 0:00:03]} 81. Rh7+ {[%clk 0:00:04]}  Nd7 {[%clk 0:00:04]} 82. Rg7 {[%clk 0:00:05]}  Ra2 {[%clk 0:00:04]} 83. Rh7 {[%clk 0:00:05]}  Ra1 {[%clk 0:00:04]} 84. Rg7 {[%clk 0:00:05]}  Rh1 {[%clk 0:00:04]} 85. Rf7 {[%clk 0:00:05]}  Rh5+ {[%clk 0:00:04]} 86. Ka4 {[%clk 0:00:04]}  Kc6 {[%clk 0:00:04]} 87. b5+ {[%clk 0:00:03]}  Kd6 {[%clk 0:00:04]} 88. a7 {[%clk 0:00:03]}  Rh1 {[%clk 0:00:04]} 89. Kb4 {[%clk 0:00:03]}  Ra1 {[%clk 0:00:05]} 90. Rh7 {[%clk 0:00:02]}  Rxa7 {[%clk 0:00:04]} 91. Rh6+ {[%clk 0:00:03]}  Ke7 {[%clk 0:00:03]} 92. Rh7+ {[%clk 0:00:03]}  Kd6 {[%clk 0:00:03]} 93. b6 {[%clk 0:00:02]}  Ra1 {[%clk 0:00:03]} 94. Kb5 {[%clk 0:00:02]}  Rb1+ {[%clk 0:00:04]} 95. Ka5 {[%clk 0:00:03]}  Nc5 {[%clk 0:00:04]} 96. Rh6+ {[%clk 0:00:03]}  Kd5 {[%clk 0:00:04]} 97. Rh5+ {[%clk 0:00:03]}  Kc4 {[%clk 0:00:04]} 98. Rh4+ {[%clk 0:00:04]}  Kd5 {[%clk 0:00:04]} 99. Rh5+ {[%clk 0:00:04]}  Kd6 {[%clk 0:00:04]} 100. Rh6+ {[%clk 0:00:05]}  Ne6 {[%clk 0:00:04]} 101. Ka6 {[%clk 0:00:04]}  Kd5 {[%clk 0:00:04]} 102. Kb7 {[%clk 0:00:04]}  Rb2 {[%clk 0:00:03]} 103. Rh5+ {[%clk 0:00:04]}  Kd6 {[%clk 0:00:03]} 104. Rh6 {[%clk 0:00:05]}  Rb3 {[%clk 0:00:04]} 105. Rg6 {[%clk 0:00:05]}  Kd7 {[%clk 0:00:04]} 106. Rh6 {[%clk 0:00:04]}  Nc5+ {[%clk 0:00:03]} 107. Ka7 {[%clk 0:00:05]}  Ra3+ {[%clk 0:00:03]} 108. Kb8 {[%clk 0:00:05]}  Ra1 {[%clk 0:00:03]} 109. Rh7+ {[%clk 0:00:05]}  Kc6 {[%clk 0:00:03]} 110. Rh6+ {[%clk 0:00:05]}  Kd7 {[%clk 0:00:03]} 111. b7 {[%clk 0:00:05]}  Rb1 {[%clk 0:00:03]} 112. Rh7+ {[%clk 0:00:05]}  Kc6 {[%clk 0:00:03]} 113. Rh6+ {[%clk 0:00:05]}  Kd5 {[%clk 0:00:04]} 114. Rh7 {[%clk 0:00:05]}  Kd6 {[%clk 0:00:03]} 115. Kc8 {[%clk 0:00:05]}  Nxb7 {[%clk 0:00:02]} 116. Rxb7 {[%clk 0:00:06]}  Rh1 {[%clk 0:00:02]} 117. Rd7+ {[%clk 0:00:05]}  Kc6 {[%clk 0:00:03]} 118. Rd8 {[%clk 0:00:05]}  Ra1 {[%clk 0:00:02]} 119. Kb8 {[%clk 0:00:05]}  Rb1+ {[%clk 0:00:03]} 120. Kc8 {[%clk 0:00:06]}  Ra1 {[%clk 0:00:03]} 121. Kb8 {[%clk 0:00:06]}  Rb1+ {[%clk 0:00:04]} 122. Kc8 {[%clk 0:00:07]}  Ra1 {[%clk 0:00:05]} 1/2-1/2


[Site "https://www.chess.com"]

[Event "Titled Tuesday Blitz November 07 Late 2023"]
[White "Hakobyan, Aram"]
[Black "BardArtem"]
[WhiteFideId "13306677"]
[WhiteElo "3058"]
[BlackElo "2802"]
[Result "1-0"]
[Round "11"]
[TimeControl "180+1"]
[Date "2023.11.07"]
[WhiteClock "0:00:18"]
[BlackClock "0:00:01"]
[Board "6"]

1. d4 {[%clk 0:03:00]}  d5 {[%clk 0:02:59]} 2. Nf3 {[%clk 0:02:58]}  Nf6 {[%clk 0:02:59]} 3. c4 {[%clk 0:02:58]}  c6 {[%clk 0:02:59]} 4. Nc3 {[%clk 0:02:59]}  dxc4 {[%clk 0:02:59]} 5. e4 {[%clk 0:02:59]}  b5 {[%clk 0:02:58]} 6. Be2 {[%clk 0:02:58]}  Bg4 {[%clk 0:02:49]} 7. O-O {[%clk 0:02:50]}  e6 {[%clk 0:02:47]} 8. a4 {[%clk 0:02:43]}  b4 {[%clk 0:02:43]} 9. e5 {[%clk 0:02:43]}  Nd5 {[%clk 0:02:31]} 10. Ne4 {[%clk 0:02:43]}  Be7 {[%clk 0:02:13]} 11. Bxc4 {[%clk 0:02:38]}  O-O {[%clk 0:02:13]} 12. h3 {[%clk 0:02:37]}  Bf5 {[%clk 0:02:10]} 13. Ng3 {[%clk 0:02:27]}  Bg6 {[%clk 0:02:09]} 14. Bd3 {[%clk 0:02:25]}  Nd7 {[%clk 0:02:06]} 15. Bxg6 {[%clk 0:02:25]}  hxg6 {[%clk 0:02:07]} 16. Qe2 {[%clk 0:02:13]}  a5 {[%clk 0:01:56]} 17. Rd1 {[%clk 0:02:05]}  c5 {[%clk 0:01:48]} 18. Ne4 {[%clk 0:02:06]}  Qc7 {[%clk 0:01:37]} 19. Bg5 {[%clk 0:02:04]}  Bxg5 {[%clk 0:01:27]} 20. Nexg5 {[%clk 0:02:05]}  c4 {[%clk 0:01:25]} 21. Qe4 {[%clk 0:01:54]}  Rfc8 {[%clk 0:01:25]} 22. Nxf7 {[%clk 0:01:36]}  Kxf7 {[%clk 0:00:55]} 23. Ng5+ {[%clk 0:01:36]}  Kg8 {[%clk 0:00:56]} 24. Nxe6 {[%clk 0:01:37]}  Qb7 {[%clk 0:00:55]} 25. Nf4 {[%clk 0:01:37]}  N7b6 {[%clk 0:00:51]} 26. Nxg6 {[%clk 0:01:38]}  c3 {[%clk 0:00:31]} 27. e6 {[%clk 0:01:28]}  Qc6 {[%clk 0:00:19]} 28. Re1 {[%clk 0:00:58]}  cxb2 {[%clk 0:00:04]} 29. Rad1 {[%clk 0:00:35]}  Qc2 {[%clk 0:00:04]} 30. Qg4 {[%clk 0:00:34]}  Re8 {[%clk 0:00:02]} 31. Qh5 {[%clk 0:00:23]}  Rxe6 {[%clk 0:00:02]} 32. Rxe6 {[%clk 0:00:24]}  b1=Q {[%clk 0:00:03]} 33. Rxb1 {[%clk 0:00:23]}  Qxb1+ {[%clk 0:00:04]} 34. Kh2 {[%clk 0:00:23]}  Nf6 {[%clk 0:00:04]} 35. Rxf6 {[%clk 0:00:18]}  gxf6 {[%clk 0:00:05]} 36. Qh8+ {[%clk 0:00:18]}  Kf7 {[%clk 0:00:05]} 37. Qh7+ {[%clk 0:00:19]}  Ke6 {[%clk 0:00:05]} 38. Nf4+ {[%clk 0:00:20]}  Kd6 {[%clk 0:00:03]} 39. Qxb1 {[%clk 0:00:21]}  Nxa4 {[%clk 0:00:02]} 40. Qe4 {[%clk 0:00:20]}  Ra6 {[%clk 0:00:01]} 41. Qe6+ {[%clk 0:00:18]} 1-0


[Site "https://www.chess.com"]